bitfinex-derivatives/quotes_ETHF0:USTF0_20241018
["timestamp","ask_amount","ask_price","bid_price","bid_amount"]
[1729247468481,1.37,2631.2,2631.0,1.7629]
[1729247468680,0.38016,2631.1,2631.0,2.14307]
[1729247469577,0.38016,2631.1,2631.0,1.7629]
[1729247469884,0.38016,2631.1,2631.0,2.14307]
[1729247470975,1.37,2631.1,2630.6,3.2078]
[1729247471177,0.8007,2631.3,2630.6,3.2078]
[1729247471178,1.75022,2630.7,2630.6,3.2078]
[1729247471384,1.75022,2630.7,2630.6,4.5778]
[1729247471786,42.55022,2630.7,2630.6,4.5778]
[1729247472383,0.38022,2630.7,2630.6,4.5778]
[1729247474580,1.75022,2630.7,2630.6,3.2078]
[1729247474777,1.75022,2630.7,2630.6,4.5778]
[1729247475189,1.75022,2630.7,2630.6,3.2078]
[1729247475382,1.75022,2630.7,2630.6,4.5778]
[1729247475991,0.38022,2630.7,2630.6,4.5778]
[1729247477386,0.38022,2630.7,2630.6,1.37]
[1729247479616,0.38018,2631.0,2630.9,0.38019]
[1729247479829,0.38018,2631.0,2630.9,1.75019]
[1729247480098,0.38018,2631.0,2630.9,1.37]
[1729247480489,0.38018,2631.0,2630.9,1.7799]
[1729247481900,1.37,2631.0,2630.6,1.37]
[1729247482094,0.38025,2630.5,2630.4,3.2078]
[1729247482395,0.38025,2630.5,2630.4,4.5778]
[1729247483896,0.38025,2630.5,2630.4,3.2078]
[1729247484689,0.38025,2630.5,2630.4,6.55806]
[1729247484889,1.2281,2630.6,2630.4,6.1778]
[1729247485203,1.2281,2630.6,2630.5,2.97]
[1729247485204,0.38023,2630.6,2630.5,2.97]
[1729247485504,0.38023,2630.6,2630.5,3.35025]
[1729247486000,0.38023,2630.7,2630.6,0.38023]
[1729247486198,0.38023,2630.6,2630.5,3.76793]
[1729247486501,40.8,2631.3,2630.5,10.1593]
[1729247486701,40.8,2631.3,2630.9,2.97]
[1729247486892,0.38016,2631.1,2631.0,0.4279]
[1729247487900,0.38016,2631.1,2630.7,3.2078]
[1729247487901,0.3802,2630.8,2630.7,3.58801]
[1729247488209,0.95043,2631.1,2630.6,0.4279]
[1729247488397,0.38022,2630.7,2630.6,0.4279]
[1729247489694,0.38022,2630.7,2630.6,0.80813]
[1729247490390,0.38022,2630.7,2630.6,0.4279]
[1729247490803,2.16336,2631.0,2630.4,3.2078]
[1729247491097,0.38025,2630.5,2630.4,3.2078]
[1729247491605,0.79015,2630.5,2630.4,3.2078]
[1729247493816,0.38027,2630.3,2630.2,0.4261]
[1729247493996,0.38032,2630.0,2629.9,0.99270311]
[1729247494196,0.38031,2630.1,2629.9,0.4012]
[1729247494403,0.7878,2630.2,2630.1,0.3803]
[1729247494610,0.4099,2630.5,2630.4,0.38026]
[1729247494611,0.79015,2630.5,2630.4,0.38026]
[1729247495302,0.38025,2630.5,2630.4,0.38026]
[1729247497400,0.8325,2630.6,2630.3,3.75427]
[1729247497711,0.38025,2630.5,2630.4,0.38025]
[1729247498413,1.21274,2630.6,2630.4,0.38026]
[1729247498613,0.38025,2630.5,2630.4,0.38026]
[1729247501107,0.38026,2630.4,2630.3,3.6118]
[1729247501508,0.38026,2630.4,2630.3,3.99207]
[1729247503815,0.38026,2630.4,2630.3,0.78427]
[1729247507821,0.38026,2630.4,2630.3,0.404]
[1729247508020,0.38027,2630.4,2630.3,0.38027]
[1729247508624,0.38025,2630.5,2630.3,0.38027]
[1729247508820,0.38027,2630.4,2630.3,0.38027]
[1729247509410,0.8325,2630.6,2630.2,3.6013]
[1729247509626,0.38027,2630.3,2630.2,3.98158]
[1729247510030,0.38027,2630.3,2630.2,3.2078]
[1729247510926,0.38027,2630.3,2630.2,3.58809]
[1729247511835,0.38027,2630.3,2630.2,4.95809]
[1729247512727,0.8325,2630.6,2630.2,4.5778]
[1729247513029,0.38025,2630.5,2630.4,1.37]
[1729247513441,5.1716,2630.5,2630.3,1.37]
[1729247513733,0.38026,2630.4,2630.3,1.37]
[1729247516024,0.38026,2630.4,2630.3,1.75027]
[1729247517033,0.38026,2630.4,2630.3,1.37]
[1729247517931,0.8325,2630.6,2630.2,3.58808]
[1729247517932,0.38027,2630.3,2630.2,3.58808]
[1729247519536,0.38027,2630.3,2630.2,0.38028]
[1729247519836,0.38027,2630.3,2630.2,3.58808]
[1729247520425,0.8325,2630.6,2629.9,3.6034]
[1729247520426,4.9909,2630.6,2629.9,3.6034]
[1729247520733,0.38032,2630.1,2630.0,0.38031]
[1729247521036,1.1986,2630.2,2630.1,0.3803]
[1729247521335,1.1986,2630.2,2629.9,4.027]
[1729247521336,0.38031,2630.1,2630.0,0.38031]
[1729247521535,41.18031,2630.1,2630.0,0.38031]
[1729247521727,0.38031,2630.1,2630.0,0.38031]
[1729247523642,0.79181,2630.1,2630.0,0.38031]
[1729247523844,2.97,2630.7,2630.0,0.38031]
[1729247523845,3.2078,2631.0,2630.0,5.3367686]
[1729247524045,0.3917,2630.7,2630.4,2.97]
[1729247524343,0.3917,2630.7,2630.6,0.38023]
[1729247524944,41.2115,2630.9,2630.5,0.8168]
[1729247525138,0.38021,2630.8,2630.7,0.38022]
[1729247525636,41.6032,2630.9,2630.5,0.8168]
[1729247525838,0.38023,2630.6,2630.5,0.77695]
[1729247526044,0.38025,2630.5,2630.3,0.38027]
[1729247526340,0.4266,2630.4,2630.3,0.77677]
[1729247526839,0.80686,2630.4,2630.3,0.3965]
[1729247527686,0.80686,2630.4,2630.3,0.77677]
[1729247529134,0.4266,2630.4,2630.3,0.77677]
[1729247529539,0.80686,2630.4,2630.3,0.77677]
[1729247529944,0.80686,2630.4,2630.3,0.3965]
[1729247530435,0.80686,2630.4,2630.3,0.77677]
[1729247533344,0.80686,2630.4,2630.3,0.3965]
[1729247533543,0.80686,2630.4,2630.3,0.77677]
[1729247533742,0.80686,2630.4,2630.3,0.3965]
[1729247534134,0.4266,2630.4,2630.1,4.58255841]
[1729247534342,0.38029,2630.2,2630.1,4.99235841]
[1729247536438,0.4266,2630.4,2630.1,4.61206841]
[1729247536642,0.38029,2630.3,2630.2,0.38028]
[1729247536849,0.38029,2630.3,2630.2,1.37474841]
[1729247537635,0.4266,2630.4,2630.1,3.6176]
[1729247537943,0.38029,2630.3,2630.2,0.38028]
[1729247538655,0.4266,2630.4,2630.1,3.6176]
[1729247538950,0.80687,2630.4,2630.3,0.38027]
[1729247539847,0.80687,2630.4,2630.3,1.75027]
[1729247542156,0.80687,2630.4,2630.3,1.37]
[1729247542649,0.80687,2630.4,2630.3,1.75027]
[1729247546148,0.38025,2630.5,2630.4,0.38026]
[1729247546650,0.38025,2630.5,2630.4,2.16116]
[1729247547050,1.2119,2630.8,2630.4,1.7809]
[1729247547253,1.5921,2630.8,2630.7,1.37]
[1729247547861,1.5921,2630.8,2630.7,1.784]
[1729247549554,1.5921,2630.8,2630.7,2.16422]
[1729247550455,1.5921,2630.8,2630.7,1.784]
[1729247552967,1.5921,2630.8,2630.7,2.16422]
[1729247553654,1.5921,2630.8,2630.7,1.784]
[1729247554555,1.5921,2630.8,2630.7,2.16422]
[1729247554761,1.5921,2630.8,2630.7,1.784]
[1729247556253,1.5921,2630.8,2630.7,2.16422]
[1729247556562,0.38018,2631.0,2630.9,0.38018]
[1729247556761,0.38018,2631.0,2630.9,1.75018]
[1729247557859,0.38018,2631.0,2630.9,1.75019]
[1729247558161,40.8,2631.1,2631.0,0.38017]
[1729247558357,0.389,2631.3,2631.0,2.74]
[1729247558662,0.80222,2631.4,2631.3,0.38013]
[1729247558851,41.60222,2631.4,2631.3,1.37]
[1729247559252,0.80222,2631.4,2631.3,1.37]
[1729247560558,2.17222,2631.4,2631.3,1.37]
[1729247562862,0.38014,2631.2,2631.1,0.4275]
[1729247563066,1.37,2631.2,2631.0,1.37]
[1729247563253,1.19306,2631.1,2631.0,1.37]
[1729247563862,1.19306,2631.1,2630.9,3.2078]
[1729247563863,0.38017,2631.0,2630.9,4.5778]
[1729247564058,0.77787,2631.0,2630.9,4.5778]
[1729247564455,41.57787,2631.0,2630.9,4.5778]
[1729247566053,42.94787,2631.0,2630.9,4.5778]
[1729247566453,41.57787,2631.0,2630.9,4.5778]
[1729247566858,0.38017,2631.0,2630.9,4.5778]
[1729247567086,0.38017,2631.0,2630.9,4.95799]
[1729247568553,0.38017,2631.0,2630.9,4.5778]
[1729247568752,0.38017,2631.0,2630.9,4.95799]
[1729247568957,40.8,2631.3,2630.9,4.5778]
[1729247569156,0.38017,2631.1,2631.0,0.4272]
[1729247569561,0.38017,2631.1,2631.0,1.7972]
[1729247569760,1.75017,2631.1,2631.0,1.7972]
[1729247571666,0.38017,2631.1,2631.0,1.7972]
[1729247572164,2.186,2631.1,2630.9,3.2078]
[1729247572356,0.80307,2631.0,2630.9,4.5778]
[1729247573863,0.38017,2631.0,2630.9,4.95799]
[1729247574172,0.38017,2631.0,2630.9,4.5778]
[1729247574665,0.38017,2631.0,2630.9,4.95799]
[1729247575065,0.38017,2631.0,2630.9,4.5778]
[1729247575664,0.38017,2631.0,2630.9,4.95799]
[1729247576364,0.38017,2631.0,2630.9,1.75019]
[1729247576767,0.38017,2631.0,2630.9,1.37]
[1729247577365,0.38019,2630.9,2630.8,4.5778]
[1729247577568,0.79499,2630.9,2630.8,4.5778]
[1729247580778,2.16499,2630.9,2630.8,1.37]
[1729247580986,1.7848,2630.9,2630.7,1.37]
[1729247581269,1.7502,2630.8,2630.7,1.37]
[1729247581869,1.7502,2630.8,2630.5,1.37]
[1729247581870,0.38023,2630.6,2630.5,1.37]
[1729247582072,1.75023,2630.6,2630.5,1.37]
[1729247582460,1.7651,2630.6,2630.4,1.37]
[1729247582668,1.75025,2630.5,2630.4,1.37]
[1729247582885,0.38026,2630.4,2630.3,1.37]
[1729247584261,1.75026,2630.4,2630.3,1.37]
[1729247586170,0.38027,2630.3,2630.2,4.5778]
[1729247586369,5.375,2630.3,2630.1,1.37]
[1729247586666,0.3803,2630.1,2630.0,1.37]
[1729247588267,5.1724,2630.1,2629.8,3.6315]
[1729247588468,1.75033,2629.9,2629.8,3.6315]
[1729247588663,0.4078,2630.2,2629.8,5.0015]
[1729247588869,3.2078,2630.3,2630.1,1.37]
[1729247589077,3.58807,2630.3,2630.2,1.7674]
[1729247591377,3.58807,2630.3,2630.2,1.37]
[1729247592076,3.2078,2630.3,2630.2,1.75029]
[1729247592677,1.37,2630.6,2630.2,1.37]
[1729247592915,0.38027,2630.4,2630.3,0.38027]
[1729247593091,0.38027,2630.4,2630.3,1.75027]
[1729247593275,3.2078,2630.4,2629.8,3.2078]
[1729247593475,0.38028,2630.3,2630.2,0.38028]
[1729247593672,0.38028,2630.3,2630.2,1.37]
[1729247593979,1.7865,2630.3,2630.1,1.37]
[1729247594186,0.8121,2630.2,2630.0,0.38032]
[1729247594368,0.8121,2630.2,2629.6,1.37]
[1729247594369,3.5881,2630.1,2629.7,0.37654015]
[1729247594570,3.5881,2630.1,2630.0,1.37]
[1729247594870,3.2078,2630.1,2630.0,1.75031]
[1729247595576,3.5881,2630.1,2630.0,1.75031]
[1729247596171,0.3803,2630.1,2630.0,1.75031]
[1729247596576,4.4002,2630.2,2630.0,1.75031]
[1729247596776,1.1924,2630.2,2630.1,1.37]
[1729247596974,4.4002,2630.2,2630.1,1.37]
[1729247597575,4.4002,2630.2,2630.1,1.7503]
[1729247597775,4.4002,2630.2,2630.1,1.37]
[1729247600180,5.7702,2630.2,2630.1,1.37]
[1729247600380,0.3803,2630.1,2630.0,1.37]
[1729247600683,1.7503,2630.1,2630.0,1.37]
[1729247600879,0.3803,2630.1,2630.0,1.37]
[1729247602885,0.3803,2630.1,2630.0,1.75032]
[1729247604577,3.6074,2630.2,2630.0,1.37]
[1729247604777,3.2078,2630.2,2630.1,1.7503]
[1729247608287,0.38027,2630.4,2630.3,0.38027]
[1729247608493,3.58807,2630.4,2630.3,1.75027]
[1729247609591,0.38027,2630.4,2630.3,1.75027]
[1729247609784,3.58807,2630.4,2630.3,1.75027]
[1729247610480,0.38027,2630.4,2630.3,1.75027]
[1729247610789,3.58807,2630.4,2630.3,1.75027]
[1729247616197,0.38027,2630.4,2630.3,1.75027]
[1729247616590,0.38027,2630.4,2630.3,1.37]
[1729247616803,0.38027,2630.4,2630.3,1.75027]
[1729247618606,0.38027,2630.4,2630.3,1.37]
[1729247619292,0.38027,2630.4,2630.3,1.75027]
[1729247620291,3.2078,2630.5,2630.3,1.37]
[1729247620488,3.58805,2630.5,2630.4,1.75026]
[1729247621687,3.58805,2630.5,2630.4,1.37]
[1729247623987,3.2078,2630.5,2630.4,3.12026]
[1729247624493,3.2078,2630.5,2630.4,2.74472841]
[1729247625996,0.77238,2631.0,2630.9,0.38019]
[1729247626192,0.7843,2631.0,2630.9,1.75019]
[1729247628007,0.3921,2631.0,2630.9,1.75019]
[1729247630303,3.6194,2631.1,2631.0,0.38017]
[1729247630500,4.0287,2631.1,2631.0,1.75017]
[1729247630796,4.40886,2631.1,2631.0,1.75017]
[1729247633097,1.20106,2631.1,2631.0,1.75017]
[1729247633300,4.40886,2631.1,2631.0,1.75017]
[1729247633613,4.40886,2631.1,2631.0,1.37]
[1729247634102,4.40886,2631.1,2631.0,1.75017]
[1729247635499,1.20106,2631.1,2631.0,1.75017]
[1729247635905,4.40886,2631.1,2631.0,1.75017]
[1729247636411,1.20106,2631.1,2631.0,1.75017]
[1729247636707,4.40886,2631.1,2631.0,1.75017]
[1729247637101,1.20106,2631.1,2631.0,1.75017]
[1729247637297,4.0287,2631.1,2630.5,4.20226841]
[1729247637504,0.38019,2630.9,2630.8,0.3802]
[1729247637805,0.38019,2630.9,2630.8,1.7502]
[1729247638001,0.38018,2631.0,2630.9,0.38018]
[1729247638202,0.38018,2631.0,2630.9,1.37]
[1729247638594,5.3987,2631.1,2630.7,0.38021]
[1729247638802,0.38017,2631.0,2630.9,1.37]
[1729247639008,3.58797,2631.0,2630.9,1.37]
[1729247641297,3.2078,2631.0,2630.9,1.75019]
[1729247642415,4.40886,2631.1,2631.0,0.38017]
[1729247642713,4.40886,2631.1,2631.0,1.75017]
[1729247642906,1.20106,2631.1,2631.0,1.75017]
[1729247643108,4.40886,2631.1,2631.0,1.75017]
[1729247643504,4.40886,2631.1,2631.0,1.37]
[1729247644405,0.38017,2631.0,2630.9,1.37]
[1729247645216,3.58797,2631.0,2630.9,1.37]
[1729247645710,3.58797,2631.0,2630.9,1.75019]
[1729247645905,3.58797,2631.0,2630.9,1.37]
[1729247647114,3.58797,2631.0,2630.9,1.75019]
[1729247647817,3.58797,2631.0,2630.9,1.37]
[1729247648620,3.2078,2631.0,2630.9,1.75019]
[1729247648808,3.58797,2631.0,2630.9,1.75019]
[1729247649216,3.2078,2631.0,2630.9,1.75019]
[1729247649719,3.58797,2631.0,2630.9,1.75019]
[1729247650417,3.2078,2631.0,2630.9,1.75019]
[1729247652120,3.58797,2631.0,2630.9,1.75019]
[1729247652320,3.99507,2631.0,2630.9,1.75019]
[1729247652523,3.6149,2631.0,2630.9,1.75019]
[1729247652731,3.99507,2631.0,2630.9,1.75019]
[1729247653816,3.6149,2631.0,2630.9,1.75019]
[1729247654515,3.99507,2631.0,2630.9,1.75019]
[1729247657720,3.6149,2631.0,2630.9,1.75019]
[1729247659014,3.99956,2631.1,2631.0,0.38017]
[1729247659217,3.99956,2631.1,2631.0,1.37]
[1729247659425,3.99956,2631.1,2631.0,1.75017]
[1729247660020,3.99956,2631.1,2631.0,1.37]
[1729247660531,3.99956,2631.1,2630.7,0.99446841]
[1729247660532,9.74061,2631.1,2630.7,1.37]
[1729247660832,4.958,2630.8,2630.7,1.37]
[1729247661226,3.2078,2630.8,2630.2,1.39696841]
[1729247661426,0.38025,2630.6,2630.4,1.75025]
[1729247661726,0.38025,2630.5,2630.4,1.75025]
[1729247663422,0.38025,2630.5,2630.4,3.12025]
[1729247663933,0.38024,2630.6,2630.5,0.38025]
[1729247664125,0.38024,2630.6,2630.5,1.75025]
[1729247664427,3.58804,2630.6,2630.5,1.75025]
[1729247665527,0.38024,2630.6,2630.5,1.37]
[1729247665735,3.58804,2630.6,2630.5,1.75025]
[1729247667032,0.38024,2630.6,2630.5,1.75025]
[1729247667331,3.58804,2630.6,2630.5,1.75025]
[1729247668239,0.38024,2630.6,2630.5,1.75025]
[1729247668529,3.58804,2630.6,2630.5,1.75025]
[1729247671444,0.38026,2630.5,2630.1,0.99446841]
[1729247671731,0.80386,2630.5,2630.4,1.75026]
[1729247672735,0.80386,2630.5,2630.4,2.74472841]
[1729247673363,0.80386,2630.5,2630.4,1.75026]
[1729247673642,0.80386,2630.5,2630.4,2.74472841]
[1729247674543,0.80386,2630.5,2630.4,1.75026]
[1729247675441,0.4236,2630.5,2630.4,3.12026]
[1729247675632,3.2078,2630.6,2630.5,0.38025]
[1729247675836,3.2078,2630.6,2630.5,4.77440434]
[1729247676030,3.2078,2630.6,2630.5,8.57600434]
[1729247676384,3.2078,2630.9,2630.8,0.3802]
[1729247676536,3.2078,2630.9,2630.8,8.45609967]
[1729247676845,3.2078,2630.9,2630.8,12.14174166]
[1729247677040,3.2078,2630.9,2630.8,11.52417523]
[1729247677349,3.2078,2630.9,2630.8,10.15417523]
[1729247677539,3.2078,2630.9,2630.8,12.14110016]
[1729247678954,3.2078,2630.9,2630.8,12.13680787]
[1729247679149,3.2078,2630.9,2630.8,12.25569214]
[1729247679354,0.79202,2631.4,2631.2,0.38014]
[1729247679558,0.79202,2631.4,2631.3,1.37]
[1729247679748,3.99982,2631.4,2631.3,1.37]
[1729247681254,3.99982,2631.4,2631.3,1.75013]
[1729247682568,0.79202,2631.4,2631.3,1.75013]
[1729247682855,3.99982,2631.4,2631.3,1.75013]
[1729247683058,0.79202,2631.4,2631.3,1.75013]
[1729247683557,3.99982,2631.4,2631.3,1.37]
[1729247683748,4.42712,2631.4,2631.3,1.37]
[1729247684351,4.42712,2631.4,2631.3,1.75013]
[1729247685257,4.42712,2631.4,2631.3,1.37]
[1729247686649,4.42712,2631.4,2631.3,1.75013]
[1729247687156,1.21932,2631.4,2631.3,1.75013]
[1729247687660,4.42712,2631.4,2631.3,1.75013]
[1729247687858,4.42712,2631.4,2631.3,1.37]
[1729247689258,5.79712,2631.4,2631.3,1.37]
[1729247689755,4.42712,2631.4,2631.3,1.37]
[1729247691456,1.21932,2631.4,2631.3,1.37]
[1729247691962,4.42712,2631.4,2631.3,1.37]
[1729247692164,45.22712,2631.4,2631.3,1.37]
[1729247694653,46.217,2631.4,2631.2,1.37]
[1729247694866,0.38013,2631.3,2631.2,1.37]
[1729247697672,3.58793,2631.3,2631.2,1.37]
[1729247698458,0.38013,2631.3,2631.2,1.37]
[1729247698664,3.58793,2631.3,2631.2,1.37]
[1729247705170,8.3786,2631.3,2631.0,1.37]
[1729247705372,0.38016,2631.1,2631.0,1.37]
[1729247705573,1.75016,2631.1,2631.0,1.37]
[1729247705767,0.3802,2630.8,2630.7,1.37]
[1729247705968,4.958,2630.8,2630.7,1.37]
[1729247706668,3.588,2630.8,2630.7,1.37]
[1729247707078,3.6365,2630.8,2630.7,1.75022]
[1729247707275,1.20088,2631.0,2630.8,0.38019]
[1729247707474,1.20088,2631.0,2630.9,1.37]
[1729247710378,0.38018,2631.0,2630.9,1.37]
[1729247710574,0.38018,2631.0,2630.9,1.75019]
[1729247710786,0.38018,2631.0,2630.9,1.37]
[1729247712472,3.97717,2631.1,2631.0,0.38017]
[1729247712697,3.597,2631.1,2631.0,1.75017]
[1729247713396,3.97716,2631.1,2631.0,1.75017]
[1729247715575,3.97716,2631.1,2631.0,1.37]
[1729247715885,3.97716,2631.1,2631.0,1.75017]
[1729247716482,3.97716,2631.1,2631.0,1.37]
[1729247716784,3.97716,2631.1,2631.0,1.75017]
[1729247716984,3.97716,2631.1,2631.0,1.37]
[1729247717180,0.38019,2630.9,2630.8,1.37354047]
[1729247717487,0.38019,2630.9,2630.7,1.9025107]
[1729247717488,0.3802,2630.8,2630.7,0.99334047]
[1729247717677,1.75019,2630.9,2630.8,1.37]
[1729247717879,3.58799,2630.9,2630.8,1.37]
[1729247719087,4.5778,2630.9,2630.4,0.3889]
[1729247719277,4.95799,2630.9,2630.8,1.37]
[1729247723286,3.58799,2630.9,2630.8,1.37]
[1729247724983,3.58799,2630.9,2630.5,0.38024]
[1729247724984,0.38023,2630.6,2630.5,0.99334047]
[1729247725190,0.38023,2630.6,2630.5,1.37]
[1729247725885,3.58803,2630.6,2630.5,1.37]
[1729247726092,4.95803,2630.6,2630.5,1.37]
[1729247726479,3.58803,2630.6,2630.5,1.37]
[1729247730787,0.38025,2630.5,2630.2,1.41764047]
[1729247730990,4.95803,2630.6,2630.5,1.37]
[1729247732091,4.5778,2630.6,2630.2,0.99334047]
[1729247732396,4.5778,2630.6,2630.0,1.76255047]
[1729247732397,3.2078,2630.3,2630.0,1.76255047]
[1729247732611,0.3803,2630.1,2630.0,0.99334047]
[1729247732794,1.7837,2630.2,2629.8,0.99334047]
[1729247732986,3.2078,2629.9,2629.8,1.37369047]
[1729247733215,3.2078,2630.2,2630.1,0.3803]
[1729247733414,3.2078,2630.5,2630.1,1.37]
[1729247733596,3.58805,2630.5,2630.4,0.38026]
[1729247733899,3.58805,2630.5,2630.4,1.75026]
[1729247734089,3.58805,2630.5,2630.4,1.37]
[1729247734306,4.00275,2630.5,2630.4,1.37]
[1729247736100,4.00275,2630.5,2630.4,1.75026]
[1729247736501,4.00275,2630.5,2630.4,1.37]
[1729247737811,4.00275,2630.5,2630.4,1.75026]
[1729247738386,4.00275,2630.5,2630.4,1.37]
[1729247739891,4.00275,2630.5,2630.4,1.75026]
[1729247740203,4.00275,2630.5,2630.4,1.37]
[1729247742494,0.79495,2630.5,2630.4,1.37]
[1729247742906,4.00275,2630.5,2630.4,1.37]
[1729247743103,0.79495,2630.5,2630.4,1.37]
[1729247743300,4.00275,2630.5,2630.4,1.37]
[1729247743895,0.79495,2630.5,2630.4,1.37]
[1729247744094,4.00275,2630.5,2630.4,1.37]
[1729247744297,3.58805,2630.5,2630.4,1.75026]
[1729247744497,3.58805,2630.5,2630.4,1.37]
[1729247746305,4.95805,2630.5,2630.4,1.37]
[1729247748606,4.5778,2630.5,2630.3,1.37]
[1729247748799,2.16796,2630.4,2630.3,1.37]
[1729247752003,5.5893,2630.4,2629.8,0.99354173]
[1729247752344,4.95813,2629.9,2629.8,0.4061]
[1729247753024,3.58813,2629.9,2629.8,0.4061]
[1729247753436,0.38037,2629.7,2629.4,2.48355243]
[1729247753715,1.17675,2629.8,2629.7,1.37]
[1729247754212,1.17675,2629.8,2629.5,0.4061]
[1729247754213,2.1664,2629.8,2629.5,0.4061]
[1729247754413,0.38038,2629.6,2629.5,0.4061]
[1729247754610,0.38038,2629.6,2629.5,1.7761]
[1729247755116,2.1664,2629.8,2629.5,1.7761]
[1729247755117,1.17675,2629.8,2629.7,0.38036]
[1729247755319,0.3905,2629.8,2629.7,0.38036]
[1729247755707,3.58814,2629.9,2629.7,1.37]
[1729247756016,3.58814,2629.9,2629.8,1.75035]
[1729247756017,3.2078,2629.9,2629.8,1.75035]
[1729247756811,3.2078,2629.9,2629.8,1.37]
[1729247757012,3.58813,2629.9,2629.8,1.37]
[1729247757516,4.00243,2629.9,2629.8,1.37]
[1729247758415,4.00243,2629.9,2629.8,1.7822]
[1729247762821,3.58813,2629.9,2629.8,1.7822]
[1729247764112,3.2078,2629.9,2629.8,1.7822]
[1729247764312,3.58813,2629.9,2629.8,2.16255]
[1729247764816,4.95813,2629.9,2629.8,2.16255]
[1729247765212,4.95813,2629.9,2629.8,1.7822]
[1729247765420,4.95813,2629.9,2629.8,0.4122]
[1729247766722,0.38036,2629.7,2629.6,0.99400054]
[1729247766924,1.37,2629.7,2629.5,0.99400054]
[1729247767224,4.5778,2629.6,2629.4,2.1701]
[1729247767527,0.38039,2629.5,2629.4,0.8001]
[1729247767725,0.38039,2629.5,2629.4,1.7897]
[1729247768414,0.38039,2629.5,2629.4,2.1701]
[1729247769126,1.37,2629.5,2629.1,0.99400054]
[1729247769330,4.0101,2629.6,2629.1,0.99400054]
[1729247769331,4.95823,2629.2,2629.1,0.77014]
[1729247769520,4.95823,2629.2,2629.1,2.14014]
[1729247769719,4.95823,2629.2,2629.1,1.7597]
[1729247771321,4.95823,2629.2,2629.1,0.3897]
[1729247771519,4.95823,2629.2,2629.1,1.7597]
[1729247772026,1.75043,2629.2,2629.1,1.7597]
[1729247772228,4.95823,2629.2,2629.1,1.7597]
[1729247772625,4.95823,2629.2,2629.1,2.14015]
[1729247773328,3.58823,2629.2,2629.1,2.14015]
[1729247773822,3.58823,2629.2,2629.1,1.7597]
[1729247774129,5.37103,2629.2,2629.1,1.7597]
[1729247774332,5.77483,2629.2,2629.1,2.14015]
[1729247774531,4.40483,2629.2,2629.1,2.14015]
[1729247775733,4.0244,2629.2,2629.1,2.14015]
[1729247775927,4.40483,2629.2,2629.1,2.14015]
[1729247778343,4.0244,2629.2,2629.1,2.14015]
[1729247778530,3.2078,2629.2,2629.1,5.94335]
[1729247778843,3.2078,2629.9,2629.1,11.44701683]
[1729247779141,3.2078,2629.9,2629.8,1.75035]
[1729247779368,0.7771,2630.1,2629.9,0.38033]
[1729247779529,1.7668,2630.1,2630.0,2.17562]
[1729247779724,1.7668,2630.1,2630.0,1.7953]
[1729247779940,0.3968,2630.1,2630.0,0.80562]
[1729247781441,3.99718,2630.3,2630.1,0.3803]
[1729247781643,3.99718,2630.3,2630.0,0.4253]
[1729247781843,3.99718,2630.3,2630.1,0.38029]
[1729247782039,0.78938,2630.3,2630.1,0.38029]
[1729247782468,0.4091,2630.3,2630.1,0.38029]
[1729247782742,0.38029,2630.2,2630.1,0.38029]
[1729247783945,0.38029,2630.2,2630.0,0.80561]
[1729247784257,0.38029,2630.2,2630.1,0.3803]
[1729247784549,0.78938,2630.3,2630.1,0.3803]
[1729247784751,0.38029,2630.2,2630.1,0.3803]
[1729247785144,0.78939,2630.3,2630.1,0.3803]
[1729247785338,0.78939,2630.3,2630.1,0.38029]
[1729247785546,0.38029,2630.2,2630.1,0.38029]
[1729247785747,0.78939,2630.3,2630.1,0.38029]
[1729247786741,3.58804,2630.6,2630.5,0.38025]
[1729247786938,3.58803,2630.6,2630.5,0.38025]
[1729247787140,3.2078,2630.6,2630.5,0.38025]
[1729247787445,3.2078,2630.6,2630.4,0.4162]
[1729247787640,0.38027,2630.4,2630.2,0.38028]
[1729247787845,0.4299,2630.3,2630.2,0.38028]
[1729247788251,0.81017,2630.3,2630.2,0.38028]
[1729247788653,0.4299,2630.3,2630.2,0.38028]
[1729247792255,0.4014,2630.7,2630.5,0.38025]
[1729247792450,0.78162,2630.7,2630.6,0.78993]
[1729247792757,0.4014,2630.7,2630.6,0.78993]
[1729247792967,0.78162,2630.7,2630.6,0.78993]
[1729247793455,0.4014,2630.7,2630.6,0.78993]
[1729247795062,0.78162,2630.7,2630.6,0.4097]
[1729247795260,0.4014,2630.7,2630.5,0.38023]
[1729247795452,0.38023,2630.6,2630.5,0.38023]
[1729247796163,0.78163,2630.7,2630.6,0.38023]
[1729247796361,0.78163,2630.7,2630.5,0.38023]
[1729247796362,0.4014,2630.7,2630.5,0.38023]
[1729247796558,0.38023,2630.6,2630.5,0.38023]
[1729247798462,0.78163,2630.7,2630.6,0.38023]
[1729247798660,0.38023,2630.6,2630.5,0.38024]
[1729247799563,0.4014,2630.7,2630.6,0.38023]
[1729247799564,0.78163,2630.7,2630.6,0.38023]
[1729247799758,2.15163,2630.7,2630.6,1.75023]
[1729247800371,2.15163,2630.7,2630.6,1.37]
[1729247801662,2.15163,2630.7,2630.6,1.75023]